[Event "56th Biel Festival MTO 2023"]
[White "Misiano,Franco"]
[Black "Vantika Agrawal"]
[Site "Biel"]
[Round "1.28"]
[Annotator "ChessBase"]
[Result "0-1"]
[Date "2023.07.18"]
[WhiteElo "2133"]
[BlackElo "2428"]
[PlyCount "104"]
[TimeControl "60"]

1. e4 {[%emt 0:0:0]} c5 {[%emt 0:0:0]} 2. Nf3 {[%emt 0:0:0]} d6 {[%emt 0:0:0]} 3. d4 {[%emt 0:0:0]} cxd4 {[%emt 0:0:0]} 4. Nxd4 {[%emt 0:0:0]} Nf6 {[%emt 0:0:0]} 5. Nc3 {[%emt 0:0:0]} a6 {[%emt 0:0:0]} 6. Bg5 {[%emt 0:0:0]} e6 {[%emt 0:0:0]} 7. f4 {[%emt 0:0:0]} Qb6 {[%emt 0:0:0]} 8. Qd2 {[%emt 0:0:0]} Qxb2 {[%emt 0:0:0]} 9. Rb1 {[%emt 0:0:0]} Qa3 {[%emt 0:0:0]} 10. f5 {[%emt 0:0:0]} Nc6 {[%emt 0:0:0]} 11. fxe6 {[%emt 0:0:0]} Bxe6 {[%emt 0:0:45]} 12. Rxb7 {[%emt 0:14:17]} Nxd4 {[%emt 0:4:43]} 13. Qxd4 {[%emt 0:1:5]} Be7 {[%emt 0:1:0]} 14. Bc4 {[%emt 0:9:20]} Rc8 {[%emt 0:4:8]} 15. Bxe6 {[%emt 0:8:8]} fxe6 {[%emt 0:2:58]} 16. Bd2 {[%emt 0:3:42]} Qc5 {[%emt 0:41:12]} 17. Qxc5 {[%emt 0:4:37]} Rxc5 {[%emt 0:1:58]} 18. O-O {[%emt 0:1:41]} Rf8 {[%emt 0:11:52]} 19. h3 {[%emt 0:10:32]} Nd7 {[%emt 0:2:18]} 20. Rxf8+ {[%emt 0:0:49]} Nxf8 {[%emt 0:0:58]} 21. Kf1 {[%emt 0:5:21]} Bf6 {[%emt 0:0:59]} 22. Rb3 {[%emt 0:1:27]} Nd7 {[%emt 0:0:30]} 23. Ke2 {[%emt 0:0:29]} Rc4 {[%emt 0:1:53]} 24. Kd1 {[%emt 0:2:23]} Nc5 {[%emt 0:0:38]} 25. Ra3 {[%emt 0:1:47]} Kd7 {[%emt 0:2:20]} 26. Nb1 {[%emt 0:3:56]} Rxe4 {[%emt 0:2:31]} 27. Be3 {[%emt 0:1:16]} Bd4 {[%emt 0:2:25]} 28. Bxd4 {[%emt 0:0:33]} Rxd4+ {[%emt 0:0:3]} 29. Ke2 {[%emt 0:0:37]} Re4+ {[%emt 0:1:56]} 30. Kd2 {[%emt 0:1:10]} Rb4 {[%emt 0:0:23]} 31. Nc3 {[%emt 0:1:10]} d5 {[%emt 0:0:41]} 32. Ne2 {[%emt 0:1:41]} e5 {[%emt 0:2:22]} 33. Nc1 {[%emt 0:0:21]} Ra4 {[%emt 0:1:16]} 34. Rxa4 {[%emt 0:1:25]} Nxa4 {[%emt 0:0:5]} 35. Ne2 {[%emt 0:2:33]} Kd6 {[%emt 0:1:11]} 36. Ng3 {[%emt 0:0:40]} g6 {[%emt 0:3:18]} 37. Nf1 {[%emt 0:0:57]} d4 {[%emt 0:1:2]} 38. Nh2 {[%emt 0:1:23]} Nc3 {[%emt 0:1:11]} 39. Nf3 {[%emt 0:0:27]} Nxa2 {[%emt 0:1:2]} 40. Ng5 {[%emt 0:0:0]} h5 {[%emt 0:0:0]} 41. Ne4+ {[%emt 0:0:0]} Kd5 {[%emt 0:0:0]} 42. Nf6+ {[%emt 0:0:0]} Ke6 {[%emt 0:0:0]} 43. Ne4 {[%emt 0:0:0]} a5 {[%emt 0:0:0]} 44. g4 {[%emt 0:0:0]} hxg4 {[%emt 0:0:0]} 45. hxg4 {[%emt 0:0:0]} Nc3 {[%emt 0:0:0]} 46. Nc5+ {[%emt 0:0:0]} Kd5 {[%emt 0:0:0]} 47. Nd7 {[%emt 0:0:0]} e4 {[%emt 0:0:0]} 48. Nf8 {[%emt 0:0:0]} e3+ {[%emt 0:0:0]} 49. Kd3 {[%emt 0:0:0]} e2 {[%emt 0:0:0]} 50. Kd2 {[%emt 0:0:0]} a4 {[%emt 0:0:0]} 51. Nxg6 {[%emt 0:0:0]} a3 {[%emt 0:0:0]} 52. Nf4+ {[%emt 0:0:0]} Kd6 {[%emt 0:0:0]} 0-1

[Event "56th Biel Festival MTO 2023"]
[White "Huang,Qian"]
[Black "Collin,Moritz Valentin"]
[Site "Biel"]
[Round "1.29"]
[Annotator "ChessBase"]
[Result "1-0"]
[Date "2023.07.18"]
[WhiteElo "2422"]
[BlackElo "2132"]
[PlyCount "145"]
[TimeControl "60"]

1. c4 {[%emt 0:0:0]} e5 {[%emt 0:0:0]} 2. g3 {[%emt 0:0:0]} Nf6 {[%emt 0:0:0]} 3. Nc3 {[%emt 0:0:0]} d5 {[%emt 0:0:0]} 4. cxd5 {[%emt 0:0:0]} Nxd5 {[%emt 0:0:0]} 5. Bg2 {[%emt 0:0:0]} Nxc3 {[%emt 0:0:0]} 6. bxc3 {[%emt 0:0:0]} Nc6 {[%emt 0:0:0]} 7. d3 {[%emt 0:0:0]} Bc5 {[%emt 0:0:0]} 8. Nf3 {[%emt 0:3:34]} O-O {[%emt 0:0:0]} 9. O-O {[%emt 0:0:21]} Rb8 {[%emt 0:0:0]} 10. Bb2 {[%emt 0:6:20]} Bg4 {[%emt 0:6:23]} 11. h3 {[%emt 0:1:35]} Bh5 {[%emt 0:3:19]} 12. Qa4 {[%emt 0:14:30]} Re8 {[%emt 0:7:16]} 13. Rad1 {[%emt 0:1:8]} Bb6 {[%emt 0:7:16]} 14. Rfe1 {[%emt 0:2:46]} Qf6 {[%emt 0:16:1]} 15. Qh4 {[%emt 0:2:29]} Qxh4 {[%emt 0:1:39]} 16. Nxh4 {[%emt 0:0:7]} f6 {[%emt 0:0:55]} 17. Nf5 {[%emt 0:5:30]} Ne7 {[%emt 0:7:49]} 18. Ne3 {[%emt 0:0:42]} Bf7 {[%emt 0:6:18]} 19. a4 {[%emt 0:0:50]} c6 {[%emt 0:7:12]} 20. Rb1 {[%emt 0:2:47]} Red8 {[%emt 0:5:41]} 21. Rec1 {[%emt 0:3:44]} Nd5 {[%emt 0:2:0]} 22. Nc4 {[%emt 0:4:30]} Bc7 {[%emt 0:1:0]} 23. Ra1 {[%emt 0:0:13]} a5 {[%emt 0:5:0]} 24. Rcb1 {[%emt 0:3:28]} h5 {[%emt 0:1:42]} 25. Bf1 {[%emt 0:2:8]} h4 {[%emt 0:3:38]} 26. e4 {[%emt 0:1:52]} Ne7 {[%emt 0:1:25]} 27. Ba3 {[%emt 0:2:11]} Nc8 {[%emt 0:3:44]} 28. gxh4 {[%emt 0:4:5]} b5 {[%emt 0:5:52]} 29. axb5 {[%emt 0:0:33]} cxb5 {[%emt 0:0:7]} 30. Ne3 {[%emt 0:0:21]} Na7 {[%emt 0:3:45]} 31. Bc5 {[%emt 0:6:21]} Nc6 {[%emt 0:0:21]} 32. Nf5 {[%emt 0:0:13]} Rd7 {[%emt 0:3:7]} 33. Rb2 {[%emt 0:5:24]} Be8 {[%emt 0:4:32]} 34. Rab1 {[%emt 0:1:11]} g6 {[%emt 0:0:48]} 35. Ne3 {[%emt 0:0:10]} Rh7 {[%emt 0:0:39]} 36. Nd5 {[%emt 0:3:52]} Bd8 {[%emt 0:0:27]} 37. Rxb5 {[%emt 0:0:18]} Rxb5 {[%emt 0:0:32]} 38. Rxb5 {[%emt 0:0:6]} Rxh4 {[%emt 0:0:24]} 39. Bb6 {[%emt 0:4:7]} Bxb6 {[%emt 0:0:23]} 40. Rxb6 {[%emt 0:0:0]} Kf7 {[%emt 0:0:0]} 41. Rb7+ {[%emt 0:0:0]} Ke6 {[%emt 0:0:0]} 42. Nc7+ {[%emt 0:0:0]} Kd7 {[%emt 0:0:0]} 43. Nxe8+ {[%emt 0:0:0]} Kxe8 {[%emt 0:0:0]} 44. d4 {[%emt 0:9:7]} Nd8 {[%emt 0:0:0]} 45. Bb5+ {[%emt 0:1:5]} Kf8 {[%emt 0:0:0]} 46. Rb8 {[%emt 0:0:8]} Ke7 {[%emt 0:0:0]} 47. d5 {[%emt 0:0:3]} Nf7 {[%emt 0:0:0]} 48. c4 {[%emt 0:2:8]} Nd6 {[%emt 0:0:0]} 49. f3 {[%emt 0:4:6]} f5 {[%emt 0:0:0]} 50. c5 {[%emt 0:2:49]} fxe4 {[%emt 0:3:5]} 51. cxd6+ {[%emt 0:0:18]} Kxd6 {[%emt 0:0:9]} 52. fxe4 {[%emt 0:7:47]} Rxe4 {[%emt 0:0:6]} 53. Rd8+ {[%emt 0:2:17]} Kc5 {[%emt 0:1:47]} 54. Be8 {[%emt 0:0:5]} Rd4 {[%emt 0:1:42]} 55. Bxg6 {[%emt 0:0:48]} Rxd5 {[%emt 0:0:15]} 56. Ra8 {[%emt 0:0:5]} Kb4 {[%emt 0:5:30]} 57. Kf2 {[%emt 0:3:51]} Rd6 {[%emt 0:3:13]} 58. Be8 {[%emt 0:10:23]} Rh6 {[%emt 0:14:37]} 59. Bd7 {[%emt 0:6:4]} Rh7 {[%emt 0:0:8]} 60. Ra7 {[%emt 0:0:0]} Kc3 {[%emt 0:0:0]} 61. Ke3 {[%emt 0:0:0]} a4 {[%emt 0:0:0]} 62. Ke4 {[%emt 0:0:0]} Kb2 {[%emt 0:0:0]} 63. Rxa4 {[%emt 0:0:0]} Rxd7 {[%emt 0:0:0]} 64. Kxe5 {[%emt 0:0:0]} Kc3 {[%emt 0:0:0]} 65. h4 {[%emt 0:0:0]} Rd1 {[%emt 0:0:0]} 66. Kf5 {[%emt 0:0:0]} Kd3 {[%emt 0:0:45]} 67. h5 {[%emt 0:0:0]} Ke3 {[%emt 0:1:17]} 68. Rh4 {[%emt 0:1:18]} Rf1+ {[%emt 0:2:0]} 69. Ke5 {[%emt 0:0:12]} Ra1 {[%emt 0:0:18]} 70. h6 {[%emt 0:0:57]} Ra5+ {[%emt 0:0:9]} 71. Kf6 {[%emt 0:0:2]} Ra6+ {[%emt 0:1:11]} 72. Kg5 {[%emt 0:0:3]} Kf3 {[%emt 0:2:12]} 73. h7 {[%emt 0:0:10]} 1-0

[Event "56th Biel Festival MTO 2023"]
[White "Giacomini,Hector"]
[Black "Wessman,Richard"]
[Site "Biel"]
[Round "1.30"]
[Annotator "ChessBase"]
[Result "0-1"]
[Date "2023.07.18"]
[WhiteElo "2126"]
[BlackElo "2410"]
[PlyCount "78"]
[TimeControl "60"]

1. Nf3 {[%emt 0:0:0]} Nf6 {[%emt 0:0:0]} 2. e3 {[%emt 0:0:0]} d5 {[%emt 0:0:0]} 3. d4 {[%emt 0:0:0]} Bg4 {[%emt 0:0:0]} 4. Be2 {[%emt 0:0:0]} c6 {[%emt 0:0:0]} 5. O-O {[%emt 0:0:0]} e6 {[%emt 0:0:0]} 6. Nbd2 {[%emt 0:0:0]} Nbd7 {[%emt 0:0:0]} 7. c4 {[%emt 0:0:0]} Bd6 {[%emt 0:0:0]} 8. c5 {[%emt 0:0:0]} Bc7 {[%emt 0:0:0]} 9. b4 {[%emt 0:0:0]} O-O {[%emt 0:1:33]} 10. h3 {[%emt 0:0:0]} Bh5 {[%emt 0:7:41]} 11. Bb2 {[%emt 0:0:49]} Qe7 {[%emt 0:7:14]} 12. a4 {[%emt 0:14:10]} Bxf3 {[%emt 0:11:7]} 13. Nxf3 {[%emt 0:2:33]} Ne4 {[%emt 0:4:47]} 14. b5 {[%emt 0:2:55]} f5 {[%emt 0:0:39]} 15. a5 {[%emt 0:10:32]} cxb5 {[%emt 0:2:18]} 16. Bxb5 {[%emt 0:0:16]} a6 {[%emt 0:0:15]} 17. Be2 {[%emt 0:3:40]} Nb8 {[%emt 0:0:35]} 18. Nd2 {[%emt 0:5:0]} Nc6 {[%emt 0:1:35]} 19. Nxe4 {[%emt 0:2:21]} fxe4 {[%emt 0:0:8]} 20. Bc3 {[%emt 0:0:59]} Rf7 {[%emt 0:8:16]} 21. Qd2 {[%emt 0:17:56]} Raf8 {[%emt 0:1:58]} 22. Rab1 {[%emt 0:5:17]} Bb8 {[%emt 0:2:13]} 23. Bg4 {[%emt 0:3:49]} g6 {[%emt 0:0:47]} 24. f4 {[%emt 0:11:16]} exf3 {[%emt 0:0:18]} 25. Rxf3 {[%emt 0:3:39]} h5 {[%emt 0:4:36]} 26. Rxb7 {[%emt 0:4:48]} Qxb7 {[%emt 0:30:30]} 27. Bxe6 {[%emt 0:0:13]} Qb1+ {[%emt 0:3:38]} 28. Kf2 {[%emt 0:0:24]} Qe4 {[%emt 0:0:26]} 29. Bxf7+ {[%emt 0:1:38]} Rxf7 {[%emt 0:0:4]} 30. Rxf7 {[%emt 0:1:0]} Kxf7 {[%emt 0:0:12]} 31. Qb2 {[%emt 0:1:46]} Bh2 {[%emt 0:0:23]} 32. Qe2 {[%emt 0:3:39]} Qf5+ {[%emt 0:2:32]} 33. Qf3 {[%emt 0:4:3]} Bc7 {[%emt 0:1:36]} 34. e4 {[%emt 0:3:5]} dxe4 {[%emt 0:3:33]} 35. Qxf5+ {[%emt 0:0:4]} gxf5 {[%emt 0:0:7]} 36. d5 {[%emt 0:0:7]} Nxa5 {[%emt 0:0:47]} 37. d6 {[%emt 0:0:22]} Bd8 {[%emt 0:0:9]} 38. Ke3 {[%emt 0:1:23]} Bg5+ {[%emt 0:2:42]} 39. Ke2 {[%emt 0:1:16]} Nc6 {[%emt 0:0:12]} 0-1

[Event "56th Biel Festival MTO 2023"]
[White "Jinan Jomon"]
[Black "Gemelli,Romain"]
[Site "Biel"]
[Round "1.31"]
[Annotator "ChessBase"]
[Result "1-0"]
[Date "2023.07.18"]
[WhiteElo "2409"]
[BlackElo "2122"]
[PlyCount "59"]
[TimeControl "60"]

1. c4 {[%emt 0:0:0]} Nf6 {[%emt 0:0:0]} 2. Nf3 {[%emt 0:0:0]} e6 {[%emt 0:0:0]} 3. Nc3 {[%emt 0:0:0]} d5 {[%emt 0:0:0]} 4. e3 {[%emt 0:0:0]} Be7 {[%emt 0:0:0]} 5. b3 {[%emt 0:0:0]} O-O {[%emt 0:0:0]} 6. Bb2 {[%emt 0:0:0]} c5 {[%emt 0:0:0]} 7. cxd5 {[%emt 0:0:56]} Nxd5 {[%emt 0:0:0]} 8. Qc2 {[%emt 0:6:42]} Nc6 {[%emt 0:0:0]} 9. a3 {[%emt 0:3:46]} b6 {[%emt 0:3:38]} 10. Nxd5 {[%emt 0:20:52]} exd5 {[%emt 0:1:14]} 11. d4 {[%emt 0:7:36]} Be6 {[%emt 0:22:39]} 12. Ba6 {[%emt 0:3:26]} Qd7 {[%emt 0:5:49]} 13. O-O {[%emt 0:15:41]} Bg4 {[%emt 0:12:37]} 14. Ne5 {[%emt 0:2:52]} Nxe5 {[%emt 0:0:49]} 15. dxe5 {[%emt 0:0:2]} Bf5 {[%emt 0:8:4]} 16. Qe2 {[%emt 0:0:30]} Qc6 {[%emt 0:8:4]} 17. Rad1 {[%emt 0:4:56]} Rab8 {[%emt 0:6:32]} 18. Bb5 {[%emt 0:2:22]} Qg6 {[%emt 0:0:47]} 19. Rd2 {[%emt 0:0:7]} Rfd8 {[%emt 0:3:34]} 20. Rfd1 {[%emt 0:1:11]} d4 {[%emt 0:1:57]} 21. exd4 {[%emt 0:5:8]} Bg5 {[%emt 0:0:53]} 22. Rd3 {[%emt 0:10:59]} Bxd3 {[%emt 0:7:32]} 23. Bxd3 {[%emt 0:0:2]} Qh6 {[%emt 0:3:50]} 24. d5 {[%emt 0:0:17]} Rxd5 {[%emt 0:7:22]} 25. Bxh7+ {[%emt 0:0:8]} Qxh7 {[%emt 0:0:8]} 26. Rxd5 {[%emt 0:0:3]} Re8 {[%emt 0:3:2]} 27. g3 {[%emt 0:2:29]} Qh3 {[%emt 0:1:19]} 28. Qd3 {[%emt 0:4:47]} Qg4 {[%emt 0:2:12]} 29. Kg2 {[%emt 0:0:27]} Qc8 {[%emt 0:1:9]} 30. e6 {[%emt 0:1:33]} 1-0

[Event "56th Biel Festival MTO 2023"]
[White "Adam,Rafael"]
[Black "Harikrishnan.A.Ra"]
[Site "Biel"]
[Round "1.32"]
[Annotator "ChessBase"]
[Result "0-1"]
[Date "2023.07.18"]
[WhiteElo "2117"]
[BlackElo "2406"]
[PlyCount "64"]
[TimeControl "60"]

1. Nf3 {[%emt 0:0:0]} d5 {[%emt 0:0:0]} 2. g3 {[%emt 0:0:0]} Nf6 {[%emt 0:0:0]} 3. Bg2 {[%emt 0:0:0]} c6 {[%emt 0:0:0]} 4. c4 {[%emt 0:0:0]} dxc4 {[%emt 0:0:0]} 5. O-O {[%emt 0:0:0]} Nbd7 {[%emt 0:0:0]} 6. Qc2 {[%emt 0:0:0]} Nb6 {[%emt 0:0:0]} 7. Rd1 {[%emt 0:26:28]} g6 {[%emt 0:0:0]} 8. d3 {[%emt 0:4:49]} cxd3 {[%emt 0:0:0]} 9. Rxd3 {[%emt 0:0:12]} Nbd7 {[%emt 0:4:7]} 10. Nc3 {[%emt 0:1:26]} Bg7 {[%emt 0:1:27]} 11. e4 {[%emt 0:8:40]} Qc7 {[%emt 0:2:59]} 12. Bf4 {[%emt 0:4:23]} Qa5 {[%emt 0:2:59]} 13. Rad1 {[%emt 0:28:4]} e5 {[%emt 0:37:26]} 14. b4 {[%emt 0:1:20]} Qxb4 {[%emt 0:9:10]} 15. Nxe5 {[%emt 0:0:24]} O-O {[%emt 0:1:34]} 16. Nxd7 {[%emt 0:0:29]} Nxd7 {[%emt 0:0:2]} 17. Bd6 {[%emt 0:0:24]} Qa5 {[%emt 0:0:30]} 18. Bxf8 {[%emt 0:0:24]} Nxf8 {[%emt 0:0:7]} 19. Na4 {[%emt 0:10:46]} Ne6 {[%emt 0:5:18]} 20. Rc1 {[%emt 0:4:21]} Bf8 {[%emt 0:6:48]} 21. Nc3 {[%emt 0:2:34]} Nc5 {[%emt 0:0:48]} 22. Rdd1 {[%emt 0:1:13]} Be6 {[%emt 0:1:41]} 23. e5 {[%emt 0:2:2]} Bg4 {[%emt 0:2:25]} 24. Re1 {[%emt 0:1:58]} Rd8 {[%emt 0:2:54]} 25. Bf1 {[%emt 0:0:19]} Ne6 {[%emt 0:4:1]} 26. Qa4 {[%emt 0:2:28]} Qxa4 {[%emt 0:0:30]} 27. Nxa4 {[%emt 0:0:4]} Nd4 {[%emt 0:0:5]} 28. Re3 {[%emt 0:1:10]} Nf3+ {[%emt 0:0:51]} 29. Kg2 {[%emt 0:0:6]} Bh6 {[%emt 0:0:4]} 30. Rcc3 {[%emt 0:0:50]} Bxe3 {[%emt 0:0:9]} 31. Rxe3 {[%emt 0:0:4]} Ng5 {[%emt 0:1:16]} 32. Nc5 {[%emt 0:0:43]} Bh3+ {[%emt 0:0:11]} 0-1

[Event "56th Biel Festival MTO 2023"]
[White "Shlyakhtenko,Robert"]
[Black "Vincenti,Leonardo"]
[Site "Biel"]
[Round "1.33"]
[Annotator "ChessBase"]
[Result "1/2-1/2"]
[Date "2023.07.18"]
[WhiteElo "2401"]
[BlackElo "2117"]
[PlyCount "89"]
[TimeControl "60"]

1. c4 {[%emt 0:0:0]} e5 {[%emt 0:0:0]} 2. Nc3 {[%emt 0:0:0]} Bb4 {[%emt 0:0:0]} 3. Nd5 {[%emt 0:0:0]} Be7 {[%emt 0:0:0]} 4. d4 {[%emt 0:0:0]} exd4 {[%emt 0:0:0]} 5. Qxd4 {[%emt 0:0:0]} Nf6 {[%emt 0:0:0]} 6. Nxe7 {[%emt 0:0:0]} Qxe7 {[%emt 0:0:0]} 7. Nf3 {[%emt 0:0:0]} Nc6 {[%emt 0:0:0]} 8. Qc3 {[%emt 0:0:0]} d6 {[%emt 0:1:37]} 9. Bg5 {[%emt 0:4:43]} Rg8 {[%emt 0:3:32]} 10. g3 {[%emt 0:3:28]} h6 {[%emt 0:5:36]} 11. Bxf6 {[%emt 0:1:6]} Qxf6 {[%emt 0:1:5]} 12. Qxf6 {[%emt 0:0:15]} gxf6 {[%emt 0:0:2]} 13. O-O-O {[%emt 0:5:43]} Ne5 {[%emt 0:12:50]} 14. Nxe5 {[%emt 0:2:43]} fxe5 {[%emt 0:0:25]} 15. Bg2 {[%emt 0:0:6]} Rb8 {[%emt 0:6:16]} 16. Rhf1 {[%emt 0:7:28]} Be6 {[%emt 0:7:5]} 17. b3 {[%emt 0:0:12]} Ke7 {[%emt 0:5:18]} 18. f4 {[%emt 0:0:45]} f6 {[%emt 0:0:17]} 19. Bf3 {[%emt 0:3:52]} Bg4 {[%emt 0:13:27]} 20. Kd2 {[%emt 0:0:53]} c6 {[%emt 0:7:41]} 21. Ke3 {[%emt 0:6:37]} Bxf3 {[%emt 0:11:17]} 22. Rxf3 {[%emt 0:0:37]} Rbf8 {[%emt 0:4:29]} 23. fxe5 {[%emt 0:5:22]} fxe5 {[%emt 0:0:16]} 24. Rdf1 {[%emt 0:2:58]} d5 {[%emt 0:1:14]} 25. cxd5 {[%emt 0:7:28]} cxd5 {[%emt 0:1:37]} 26. Rf5 {[%emt 0:1:5]} Rxf5 {[%emt 0:0:43]} 27. Rxf5 {[%emt 0:0:5]} Ke6 {[%emt 0:0:30]} 28. Rh5 {[%emt 0:0:11]} Rg6 {[%emt 0:0:8]} 29. Kd3 {[%emt 0:0:28]} b5 {[%emt 0:3:53]} 30. e3 {[%emt 0:0:23]} a5 {[%emt 0:5:15]} 31. a3 {[%emt 0:0:38]} Rf6 {[%emt 0:2:21]} 32. h3 {[%emt 0:8:5]} Rg6 {[%emt 0:0:16]} 33. g4 {[%emt 0:0:36]} Rf6 {[%emt 0:0:35]} 34. b4 {[%emt 0:0:39]} axb4 {[%emt 0:2:29]} 35. axb4 {[%emt 0:0:6]} Rg6 {[%emt 0:0:18]} 36. Kd2 {[%emt 0:0:46]} Rf6 {[%emt 0:0:48]} 37. Ke2 {[%emt 0:0:8]} Kd6 {[%emt 0:4:58]} 38. Kd3 {[%emt 0:10:25]} Ke6 {[%emt 0:0:19]} 39. Kd2 {[%emt 0:0:38]} Rg6 {[%emt 0:2:27]} 40. Rf5 {[%emt 0:0:0]} Rf6 {[%emt 0:0:0]} 41. Rh5 {[%emt 0:0:0]} Rf2+ {[%emt 0:0:0]} 42. Kd3 {[%emt 0:0:0]} Rf6 {[%emt 0:0:0]} 43. Ke2 {[%emt 0:0:0]} Kd6 {[%emt 0:0:0]} 44. Kd3 {[%emt 0:0:0]} Ke6 {[%emt 0:0:0]} 45. Ke2 {[%emt 0:0:0]} 1/2-1/2

[Event "56th Biel Festival MTO 2023"]
[White "Matta,Vinay Kumar"]
[Black "Morawietz,Dieter"]
[Site "Biel"]
[Round "1.34"]
[Annotator "ChessBase"]
[Result "1/2-1/2"]
[Date "2023.07.18"]
[WhiteElo "2111"]
[BlackElo "2396"]
[PlyCount "76"]
[TimeControl "60"]

1. e4 {[%emt 0:0:0]} e6 {[%emt 0:0:0]} 2. d4 {[%emt 0:0:0]} d5 {[%emt 0:0:0]} 3. Nc3 {[%emt 0:0:0]} Bb4 {[%emt 0:0:0]} 4. e5 {[%emt 0:0:0]} c5 {[%emt 0:0:0]} 5. a3 {[%emt 0:0:0]} Bxc3+ {[%emt 0:0:0]} 6. bxc3 {[%emt 0:0:0]} Nc6 {[%emt 0:0:0]} 7. Qg4 {[%emt 0:0:0]} g6 {[%emt 0:0:0]} 8. Nf3 {[%emt 0:0:0]} h6 {[%emt 0:0:0]} 9. h4 {[%emt 0:0:0]} Qa5 {[%emt 0:0:0]} 10. Bd2 {[%emt 0:0:0]} c4 {[%emt 0:0:42]} 11. Be2 {[%emt 0:0:0]} Bd7 {[%emt 0:0:8]} 12. Qf4 {[%emt 0:0:58]} Rh7 {[%emt 0:1:10]} 13. O-O {[%emt 0:0:44]} O-O-O {[%emt 0:0:45]} 14. Rfb1 {[%emt 0:13:9]} Kb8 {[%emt 0:22:47]} 15. a4 {[%emt 0:2:0]} Nce7 {[%emt 0:0:17]} 16. Rb4 {[%emt 0:2:15]} Ka8 {[%emt 0:2:26]} 17. Be1 {[%emt 0:3:32]} Rf8 {[%emt 0:4:39]} 18. Qc1 {[%emt 0:2:13]} Nc6 {[%emt 0:5:45]} 19. Rb5 {[%emt 0:1:18]} Qd8 {[%emt 0:0:21]} 20. Qa3 {[%emt 0:1:33]} f6 {[%emt 0:2:20]} 21. Rab1 {[%emt 0:2:37]} Bc8 {[%emt 0:0:27]} 22. Bd2 {[%emt 0:4:10]} g5 {[%emt 0:18:28]} 23. exf6 {[%emt 0:2:55]} Nxf6 {[%emt 0:5:58]} 24. hxg5 {[%emt 0:1:8]} hxg5 {[%emt 0:0:9]} 25. Nxg5 {[%emt 0:8:2]} Rg7 {[%emt 0:0:13]} 26. Bf3 {[%emt 0:12:16]} Rfg8 {[%emt 0:4:37]} 27. Qc1 {[%emt 0:4:13]} e5 {[%emt 0:5:18]} 28. dxe5 {[%emt 0:2:4]} Nxe5 {[%emt 0:0:10]} 29. Be3 {[%emt 0:6:47]} Nxf3+ {[%emt 0:9:6]} 30. gxf3 {[%emt 0:0:39]} Nh7 {[%emt 0:7:11]} 31. f4 {[%emt 0:1:2]} Nxg5 {[%emt 0:0:6]} 32. fxg5 {[%emt 0:0:4]} Rxg5+ {[%emt 0:0:6]} 33. Bxg5 {[%emt 0:1:13]} Rxg5+ {[%emt 0:0:5]} 34. Kf1 {[%emt 0:0:17]} Bh3+ {[%emt 0:0:6]} 35. Ke2 {[%emt 0:0:14]} Re5+ {[%emt 0:0:15]} 36. Qe3 {[%emt 0:3:42]} Rxe3+ {[%emt 0:0:32]} 37. fxe3 {[%emt 0:0:40]} Qg5 {[%emt 0:4:0]} 38. Kd2 {[%emt 0:0:32]} Qg2+ {[%emt 0:0:23]} 1/2-1/2

[Event "56th Biel Festival MTO 2023"]
[White "Ajay Krishna,S."]
[Black "Ehsani,Yassamin"]
[Site "Biel"]
[Round "1.35"]
[Annotator "ChessBase"]
[Result "1-0"]
[Date "2023.07.18"]
[WhiteElo "2390"]
[BlackElo "2106"]
[PlyCount "81"]
[TimeControl "60"]

1. Nf3 {[%emt 0:0:0]} d5 {[%emt 0:0:0]} 2. d4 {[%emt 0:0:0]} Nf6 {[%emt 0:0:0]} 3. c3 {[%emt 0:0:0]} Bf5 {[%emt 0:0:0]} 4. Qb3 {[%emt 0:0:0]} Qc8 {[%emt 0:1:40]} 5. c4 {[%emt 0:0:0]} dxc4 {[%emt 0:10:59]} 6. Qxc4 {[%emt 0:0:0]} Nbd7 {[%emt 0:0:56]} 7. Nc3 {[%emt 0:0:8]} Nb6 {[%emt 0:5:22]} 8. Qb3 {[%emt 0:2:14]} e6 {[%emt 0:2:48]} 9. g3 {[%emt 0:8:14]} Ne4 {[%emt 0:8:49]} 10. Nd2 {[%emt 0:14:32]} Nxc3 {[%emt 0:11:11]} 11. bxc3 {[%emt 0:5:39]} Be7 {[%emt 0:1:8]} 12. a4 {[%emt 0:9:22]} Nd7 {[%emt 0:16:44]} 13. Bg2 {[%emt 0:2:7]} Rb8 {[%emt 0:0:14]} 14. Nc4 {[%emt 0:13:20]} Nf6 {[%emt 0:6:28]} 15. Ba3 {[%emt 0:12:30]} Bxa3 {[%emt 0:6:54]} 16. Qxa3 {[%emt 0:0:25]} Qd7 {[%emt 0:1:6]} 17. Qc5 {[%emt 0:13:45]} a6 {[%emt 0:5:24]} 18. O-O {[%emt 0:5:24]} Qe7 {[%emt 0:3:34]} 19. Qxe7+ {[%emt 0:6:19]} Kxe7 {[%emt 0:0:3]} 20. Na5 {[%emt 0:0:8]} c6 {[%emt 0:4:42]} 21. f3 {[%emt 0:0:41]} Rhc8 {[%emt 0:2:8]} 22. e4 {[%emt 0:0:6]} Bg6 {[%emt 0:0:5]} 23. Rfb1 {[%emt 0:1:5]} b6 {[%emt 0:2:23]} 24. Nc4 {[%emt 0:0:31]} Nd7 {[%emt 0:0:20]} 25. Bf1 {[%emt 0:0:54]} f6 {[%emt 0:0:24]} 26. Rb2 {[%emt 0:0:35]} Bf7 {[%emt 0:1:33]} 27. Nd2 {[%emt 0:1:47]} a5 {[%emt 0:3:21]} 28. Rab1 {[%emt 0:0:55]} Kd6 {[%emt 0:1:45]} 29. Nc4+ {[%emt 0:1:32]} Kc7 {[%emt 0:0:5]} 30. Bh3 {[%emt 0:0:8]} Rd8 {[%emt 0:0:45]} 31. Kf2 {[%emt 0:1:51]} e5 {[%emt 0:0:51]} 32. Ne3 {[%emt 0:0:20]} Nf8 {[%emt 0:1:3]} 33. Rd1 {[%emt 0:1:3]} c5 {[%emt 0:1:57]} 34. d5 {[%emt 0:0:17]} Be8 {[%emt 0:0:26]} 35. Ra1 {[%emt 0:0:50]} Ng6 {[%emt 0:1:1]} 36. Nc4 {[%emt 0:0:28]} Bf7 {[%emt 0:0:47]} 37. Rab1 {[%emt 0:0:25]} Nf8 {[%emt 0:1:2]} 38. Rxb6 {[%emt 0:0:37]} Rxb6 {[%emt 0:0:23]} 39. Rxb6 {[%emt 0:0:4]} Nd7 {[%emt 0:0:21]} 40. d6+ {[%emt 0:0:0]} Kc8 {[%emt 0:0:0]} 41. Nxa5 {[%emt 0:0:0]} 1-0